fUSD/lending_fUSD_20250105
["ID","MTS","AMOUNT","RATE_DAILY","PERIOD"]
[347698855,1736073080976,-502.32742071,9.041e-05,2]
[347698856,1736073080986,-1500.34,9.041e-05,2]
[347698857,1736073080995,-502.16479961,9.041e-05,2]
[347698858,1736073081004,-1254.38,9.041e-05,2]
[347698859,1736073081014,-920.09,9.041e-05,2]
[347698860,1736073081023,-500.0,9.041e-05,2]
[347698861,1736073081036,-500.0,9.041e-05,2]
[347698862,1736073081045,-500.0,9.041e-05,2]
[347698863,1736073081054,-785.8,9.041e-05,2]
[347698864,1736073081063,-588.19,9.041e-05,2]
[347698865,1736073081073,-500.0,9.041e-05,2]
[347698866,1736073081082,-500.0,9.041e-05,2]
[347698867,1736073081091,-2006.93,9.041e-05,2]
[347698868,1736073081100,-610.53,9.041e-05,2]
[347698869,1736073081110,-612.12,9.041e-05,2]
[347698870,1736073081119,-500.0,9.041e-05,2]
[347698871,1736073081127,-766.820654,9.041e-05,2]
[347698872,1736073081137,-500.0,9.041e-05,2]
[347698873,1736073081147,-500.0,9.041e-05,2]
[347698874,1736073081158,-692.37,9.041e-05,2]
[347698875,1736073081167,-500.0,9.041e-05,2]
[347698876,1736073081176,-500.0,9.041e-05,2]
[347698877,1736073081187,-500.0,9.041e-05,2]
[347698878,1736073081196,-1136.87,9.041e-05,2]
[347698879,1736073081205,-500.0,9.041e-05,2]
[347698880,1736073081215,-1789.74,9.041e-05,2]
[347698881,1736073081226,-500.0,9.041e-05,2]
[347698882,1736073081236,-500.0,9.041e-05,2]
[347698883,1736073081247,-500.0,9.041e-05,2]
[347698884,1736073081256,-2281.52,9.041e-05,2]
[347698885,1736073081265,-500.0,9.041e-05,2]
[347698886,1736073081277,-500.0,9.041e-05,2]
[347698887,1736073081286,-500.0,9.041e-05,2]
[347698888,1736073081295,-500.0,9.041e-05,2]
[347698889,1736073081303,-984.65,9.041e-05,2]
[347698890,1736073081313,-3149.05,9.041e-05,2]
[347698891,1736073081322,-814.750091,9.041e-05,2]
[347698892,1736073081331,-501.04596101,9.041e-05,2]
[347698893,1736073081340,-3149.05,9.041e-05,2]
[347698894,1736073081349,-500.0,9.041e-05,2]
[347698895,1736073081358,-675.15,9.041e-05,2]
[347698896,1736073081367,-500.0,9.041e-05,2]
[347698897,1736073081376,-500.0,9.041e-05,2]
[347698898,1736073081385,-500.0,9.041e-05,2]
[347698899,1736073081394,-500.0,9.041e-05,2]
[347698900,1736073081404,-751.22,9.041e-05,2]
[347698901,1736073081413,-864.21,9.041e-05,2]
[347698902,1736073081423,-1674.49,9.041e-05,2]
[347698903,1736073081432,-500.0,9.041e-05,2]
[347698904,1736073081442,-500.0,9.041e-05,2]
[347698905,1736073081451,-500.0,9.041e-05,2]
[347698906,1736073081460,-500.0,9.041e-05,2]
[347698907,1736073081469,-500.0,9.041e-05,2]
[347698908,1736073081478,-872.96,9.041e-05,2]
[347698909,1736073081487,-500.0,9.041e-05,2]
[347698910,1736073081496,-500.0,9.041e-05,2]
[347698911,1736073081505,-500.0,9.041e-05,2]
[347698912,1736073081515,-500.0,9.041e-05,2]
[347698913,1736073081524,-500.0,9.041e-05,2]
[347698914,1736073081535,-500.0,9.041e-05,2]
[347698915,1736073081545,-500.0,9.041e-05,2]
[347698916,1736073081554,-500.0,9.041e-05,2]
[347698917,1736073081563,-843.11,9.041e-05,2]
[347698918,1736073081572,-500.0,9.041e-05,2]
[347698919,1736073081580,-762.15,9.041e-05,2]
[347698920,1736073081589,-500.0,9.041e-05,2]
[347698921,1736073081598,-500.0,9.041e-05,2]
[347698922,1736073081607,-500.0,9.041e-05,2]
[347698923,1736073081618,-500.0,9.041e-05,2]
[347698924,1736073081628,-500.0,9.041e-05,2]
[347698925,1736073081637,-500.0,9.041e-05,2]
[347698926,1736073081646,-500.0,9.041e-05,2]
[347698927,1736073081655,-500.0,9.041e-05,2]
[347698928,1736073081665,-538.64,9.041e-05,2]
[347698929,1736073081674,-843.1,9.041e-05,2]
[347698930,1736073081683,-500.0,9.041e-05,2]
[347698931,1736073081694,-2666.42,9.041e-05,2]
[347698932,1736073081703,-500.0,9.041e-05,2]
[347698933,1736073081711,-500.0,9.041e-05,2]
[347698934,1736073081720,-500.0,9.041e-05,2]
[347698935,1736073081729,-500.0,9.041e-05,2]
[347698936,1736073081739,-500.0,9.041e-05,2]
[347698937,1736073081749,-500.0,9.041e-05,2]
[347698938,1736073081758,-500.0,9.041e-05,2]
[347698939,1736073081767,-1091.71,9.041e-05,2]
[347698940,1736073081776,-500.0,9.041e-05,2]
[347698941,1736073081785,-500.0,9.041e-05,2]
[347698942,1736073081795,-500.0,9.041e-05,2]
[347698943,1736073081805,-500.0,9.041e-05,2]
[347698944,1736073081814,-500.0,9.041e-05,2]
[347698945,1736073081823,-500.0,9.041e-05,2]
[347698946,1736073081832,-1282.29,9.041e-05,2]
[347698947,1736073081842,-500.0,9.041e-05,2]
[347698948,1736073081852,-1390.35,9.041e-05,2]
[347698949,1736073081862,-500.0,9.041e-05,2]
[347698950,1736073081871,-500.0,9.041e-05,2]
[347698951,1736073081881,-500.0,9.041e-05,2]
[347698952,1736073081892,-500.0,9.041e-05,2]
[347698953,1736073081901,-754.63,9.041e-05,2]
[347698954,1736073081910,-500.0,9.041e-05,2]
[347698955,1736073081919,-264.46176793,9.041e-05,2]
[347698956,1736073081927,-943.2,9.041e-05,2]
[347698957,1736073081936,-659.97,9.041e-05,2]
[347698958,1736073081946,-500.0,9.041e-05,2]
[347698959,1736073081956,-508.77,9.041e-05,2]
[347698960,1736073081965,-500.0,9.041e-05,2]
[347698961,1736073081975,-500.0,9.041e-05,2]
[347698962,1736073081985,-500.0,9.041e-05,2]
[347698963,1736073081996,-500.0,9.041e-05,2]
[347698964,1736073082006,-523.14,9.041e-05,2]
[347698965,1736073082015,-500.0,9.041e-05,2]
[347698966,1736073082026,-1025.15,9.041e-05,2]
[347698967,1736073082035,-633.64,9.041e-05,2]
[347698968,1736073082045,-1579.45,9.041e-05,2]
[347698969,1736073082054,-500.0,9.041e-05,2]
[347698970,1736073082063,-500.0,9.041e-05,2]
[347698971,1736073082072,-500.0,9.041e-05,2]
[347698972,1736073082083,-500.0,9.041e-05,2]
[347698973,1736073082093,-500.0,9.041e-05,2]
[347698974,1736073082102,-203.45728543,9.041e-05,2]
[347698975,1736073082112,-610.4,9.041e-05,2]
[347698976,1736073082121,-500.0,9.041e-05,2]
[347698977,1736073082130,-500.0,9.041e-05,2]
[347698978,1736073082139,-1549.01,9.041e-05,2]
[347698979,1736073082148,-1012.67,9.041e-05,2]
[347698980,1736073082157,-500.0,9.041e-05,2]
[347698981,1736073082166,-511.31,9.041e-05,2]
[347698982,1736073082175,-500.0,9.041e-05,2]
[347698983,1736073082186,-2023.98,9.041e-05,2]
[347698984,1736073082197,-5710.38,9.041e-05,2]
[347698985,1736073082207,-500.0,9.041e-05,2]
[347698986,1736073082217,-500.0,9.041e-05,2]
[347698987,1736073082226,-500.0,9.041e-05,2]
[347698988,1736073082235,-1000.79,9.041e-05,2]
[347698989,1736073082244,-500.0,9.041e-05,2]
[347698990,1736073082252,-500.0,9.041e-05,2]
[347698991,1736073082261,-890.29,9.041e-05,2]
[347698992,1736073082269,-2330.9,9.041e-05,2]
[347698993,1736073082280,-500.0,9.041e-05,2]
[347698994,1736073082289,-1391.01,9.041e-05,2]
[347698995,1736073082298,-2854.56,9.041e-05,2]
[347698996,1736073082307,-500.0,9.041e-05,2]
[347698997,1736073082317,-500.0,9.041e-05,2]
[347698998,1736073082325,-8474.68,9.041e-05,2]
[347698999,1736073082335,-708.73,9.041e-05,2]
[347699000,1736073082345,-1088.46,9.041e-05,2]
[347699001,1736073082355,-500.0,9.041e-05,2]
[347699002,1736073082364,-732.62,9.041e-05,2]
[347699003,1736073082374,-1378.56,9.041e-05,2]
[347699004,1736073082383,-500.0,9.041e-05,2]
[347699005,1736073082394,-500.0,9.041e-05,2]
[347699006,1736073082403,-500.0,9.041e-05,2]
[347699007,1736073082413,-2338.78,9.041e-05,2]
[347699008,1736073082422,-500.0,9.041e-05,2]
[347699009,1736073082433,-1532.97,9.041e-05,2]
[347699010,1736073082442,-500.0,9.041e-05,2]
[347699011,1736073082452,-500.0,9.041e-05,2]
[347699012,1736073082462,-500.0,9.041e-05,2]
[347699013,1736073082471,-500.0,9.041e-05,2]
[347699014,1736073082481,-500.0,9.041e-05,2]
[347699015,1736073082490,-7062.13,9.041e-05,2]
[347699016,1736073082499,-500.0,9.041e-05,2]
[347699017,1736073082508,-500.0,9.041e-05,2]
[347699018,1736073082517,-3336.86,9.041e-05,2]
[347699019,1736073082526,-500.0,9.041e-05,2]
[347699020,1736073082538,-4964.91,9.041e-05,2]
[347699021,1736073082548,-1944.64,9.041e-05,2]
[347699022,1736073082556,-1047.52,9.041e-05,2]
[347699023,1736073082565,-2791.16,9.041e-05,2]
[347699024,1736073082574,-678.23,9.041e-05,2]
[347699025,1736073082585,-500.0,9.041e-05,2]
[347699026,1736073082595,-500.0,9.041e-05,2]
[347699027,1736073082604,-500.0,9.041e-05,2]
[347699028,1736073082613,-500.0,9.041e-05,2]
[347699029,1736073082626,-500.0,9.041e-05,2]
[347699030,1736073082636,-1702.42,9.041e-05,2]
[347699031,1736073082645,-500.0,9.041e-05,2]
[347699032,1736073082654,-509.57,9.041e-05,2]
[347699033,1736073082665,-1332.86,9.041e-05,2]
[347699034,1736073082674,-2055.1,9.041e-05,2]
[347699035,1736073082683,-5964.19,9.041e-05,2]
[347699036,1736073082694,-500.0,9.041e-05,2]
[347699037,1736073082703,-500.0,9.041e-05,2]
[347699038,1736073082713,-500.0,9.041e-05,2]
[347699039,1736073082723,-500.0,9.041e-05,2]
[347699040,1736073082732,-500.0,9.041e-05,2]
[347699041,1736073082740,-506.269178,9.041e-05,2]
[347699042,1736073082749,-714.83,9.041e-05,2]
[347699043,1736073082759,-500.0,9.041e-05,2]
[347699044,1736073082768,-500.0,9.041e-05,2]
[347699045,1736073082778,-1581.58,9.041e-05,2]
[347699046,1736073082788,-22486.0,9.041e-05,2]
[347699047,1736073082797,-500.0,9.041e-05,2]
[347699048,1736073082807,-500.0,9.041e-05,2]
[347699049,1736073082816,-500.0,9.041e-05,2]
[347699050,1736073082825,-500.0,9.041e-05,2]
[347699051,1736073082835,-500.0,9.041e-05,2]
[347699052,1736073082845,-500.0,9.041e-05,2]
[347699053,1736073082855,-1227.14,9.041e-05,2]
[347699054,1736073082864,-500.0,9.041e-05,2]
[347699055,1736073082875,-818.43,9.041e-05,2]
[347699056,1736073082884,-5808.82,9.041e-05,2]
[347699057,1736073082894,-500.0,9.041e-05,2]
[347699058,1736073082903,-1302.7,9.041e-05,2]
[347699059,1736073082913,-255.04,9.041e-05,2]
[347699060,1736073082922,-500.0,9.041e-05,2]
[347699061,1736073082931,-500.0,9.041e-05,2]
[347699062,1736073082940,-2458.16,9.041e-05,2]
[347699063,1736073082949,-500.0,9.041e-05,2]
[347699064,1736073082958,-500.0,9.041e-05,2]
[347699065,1736073082966,-1754.43,9.041e-05,2]
[347699066,1736073082975,-675.0,9.041e-05,2]
[347699067,1736073082984,-500.0,9.041e-05,2]
[347699068,1736073082993,-500.0,9.041e-05,2]
[347699069,1736073083003,-514.78,9.041e-05,2]
[347699070,1736073083012,-1304.1,9.041e-05,2]
[347699071,1736073083021,-500.0,9.041e-05,2]
[347699072,1736073083031,-500.0,9.041e-05,2]
[347699073,1736073083040,-500.0,9.041e-05,2]
[347699074,1736073083049,-5387.26,9.041e-05,2]
[347699075,1736073083059,-500.0,9.041e-05,2]
[347699076,1736073083069,-500.0,9.041e-05,2]
[347699077,1736073083079,-3629.76,9.041e-05,2]
[347699078,1736073083089,-500.0,9.041e-05,2]
[347699079,1736073083099,-1360.04,9.041e-05,2]
[347699080,1736073083110,-3235.55,9.041e-05,2]
[347699081,1736073083120,-965.04,9.041e-05,2]
[347699082,1736073083131,-500.0,9.041e-05,2]
[347699083,1736073083141,-500.0,9.041e-05,2]
[347699084,1736073083151,-500.0,9.041e-05,2]
[347699085,1736073083162,-8457.77,9.041e-05,2]
[347699086,1736073083173,-1619.88,9.041e-05,2]
[347699087,1736073083185,-500.0,9.041e-05,2]
[347699088,1736073083195,-500.0,9.041e-05,2]
[347699089,1736073083205,-500.0,9.041e-05,2]
[347699090,1736073083215,-500.0,9.041e-05,2]
[347699091,1736073083227,-500.0,9.041e-05,2]
[347699092,1736073083237,-500.0,9.041e-05,2]
[347699093,1736073083249,-500.0,9.041e-05,2]
[347699094,1736073083259,-500.0,9.041e-05,2]
[347699095,1736073083436,-500.0,9.041e-05,2]
[347699096,1736073083464,-500.0,9.041e-05,2]
[347699097,1736073083475,-500.0,9.041e-05,2]
[347699098,1736073083485,-1821.63,9.041e-05,2]
[347699099,1736073083495,-500.0,9.041e-05,2]
[347699100,1736073083505,-3994.03,9.041e-05,2]
[347699101,1736073083514,-4062.07,9.041e-05,2]
[347699102,1736073083524,-5788.17,9.041e-05,2]
[347699103,1736073083534,-500.0,9.041e-05,2]
[347699104,1736073083542,-573.65,9.041e-05,2]
[347699105,1736073083552,-2653.92,9.041e-05,2]
[347699106,1736073083562,-504.48003013,9.041e-05,2]
[347699107,1736073083573,-1496.52,9.041e-05,2]
[347699108,1736073083583,-500.0,9.041e-05,2]
[347699109,1736073083593,-1155.87,9.041e-05,2]
[347699110,1736073083602,-1368.79,9.041e-05,2]
[347699111,1736073083611,-5039.88,9.041e-05,2]
[347699112,1736073083625,-500.0,9.041e-05,2]
[347699113,1736073083635,-2154.25,9.041e-05,2]
[347699114,1736073083645,-500.0,9.041e-05,2]
[347699115,1736073083654,-500.0,9.041e-05,2]
[347699116,1736073083665,-500.0,9.041e-05,2]
[347699117,1736073083675,-1020.47,9.041e-05,2]
[347699118,1736073083684,-4106.66,9.041e-05,2]
[347699119,1736073083695,-329.36086463,9.041e-05,2]
[347699120,1736073083705,-1726.03,9.041e-05,2]
[347699121,1736073083715,-500.0,9.041e-05,2]
[347699122,1736073083729,-12142.01,9.041e-05,2]
[347699123,1736073083739,-6672.98,9.041e-05,2]
[347699124,1736073083748,-500.0,9.041e-05,2]
[347699125,1736073083758,-151.0,9.041e-05,2]
[347699126,1736073083767,-151.0,9.041e-05,2]
[347699127,1736073083777,-500.0,9.041e-05,2]
[347699128,1736073083788,-950.85,9.041e-05,2]
[347699129,1736073083797,-1159.36,9.041e-05,2]
[347699130,1736073083807,-500.0,9.041e-05,2]
[347699131,1736073083817,-500.0,9.041e-05,2]
[347699132,1736073083826,-1987.28,9.041e-05,2]
[347699133,1736073083835,-500.0,9.041e-05,2]
[347699134,1736073083845,-292.36025572,9.041e-05,2]
[347699135,1736073083854,-855.95,9.041e-05,2]
[347699136,1736073083863,-500.0,9.041e-05,2]
[347699137,1736073083872,-1460.51,9.041e-05,2]
[347699138,1736073083882,-514.365953,9.041e-05,2]
[347699139,1736073083891,-158.1921711,9.041e-05,2]
[347699140,1736073083901,-3002.76,9.041e-05,2]
[347699141,1736073083910,-500.0,9.041e-05,2]
[347699142,1736073083920,-500.0,9.041e-05,2]
[347699143,1736073083929,-586.93,9.041e-05,2]
[347699144,1736073083938,-500.0,9.041e-05,2]
[347699145,1736073083949,-500.0,9.041e-05,2]
[347699146,1736073083959,-500.0,9.041e-05,2]
[347699147,1736073083968,-500.0,9.041e-05,2]
[347699148,1736073083977,-500.0,9.041e-05,2]
[347699149,1736073083987,-5216.95,9.041e-05,2]
[347699150,1736073083996,-500.0,9.041e-05,2]
[347699151,1736073084006,-500.0,9.041e-05,2]
[347699152,1736073084015,-500.0,9.041e-05,2]
[347699153,1736073084025,-830.94,9.041e-05,2]
[347699154,1736073084034,-6065.56,9.041e-05,2]
[347699155,1736073084044,-502.4495283,9.041e-05,2]
[347699156,1736073084054,-500.0,9.041e-05,2]
[347699157,1736073084064,-1245.32,9.041e-05,2]
[347699158,1736073084073,-2001.97,9.041e-05,2]
[347699159,1736073084082,-1038.806774,9.041e-05,2]
[347699160,1736073084091,-500.0,9.041e-05,2]
[347699161,1736073084101,-888.76,9.041e-05,2]
[347699162,1736073084111,-683.25,9.041e-05,2]
[347699163,1736073084121,-500.0,9.041e-05,2]
[347699164,1736073084130,-500.0,9.041e-05,2]
[347699165,1736073084139,-1777.99,9.041e-05,2]
[347699166,1736073084148,-500.0,9.041e-05,2]
[347699167,1736073084158,-537.34,9.041e-05,2]
[347699168,1736073084167,-500.0,9.041e-05,2]
[347699169,1736073084177,-500.0,9.041e-05,2]
[347699170,1736073084186,-697.87,9.041e-05,2]
[347699171,1736073084195,-500.0,9.041e-05,2]
[347699172,1736073084205,-500.0,9.041e-05,2]
[347699173,1736073084214,-2094.35,9.041e-05,2]
[347699174,1736073084224,-526.43,9.041e-05,2]
[347699175,1736073084233,-289.51960154,9.041e-05,2]
[347699176,1736073084242,-867.33,9.041e-05,2]
[347699177,1736073084252,-500.0,9.041e-05,2]
[347699178,1736073084261,-4670.12,9.041e-05,2]
[347699179,1736073084271,-764.62,9.041e-05,2]
[347699180,1736073084281,-500.0,9.041e-05,2]
[347699181,1736073084290,-500.0,9.041e-05,2]
[347699182,1736073084299,-1804.74,9.041e-05,2]
[347699183,1736073084309,-500.0,9.041e-05,2]
[347699184,1736073084318,-2908.32,9.041e-05,2]
[347699185,1736073084327,-1318.92,9.041e-05,2]
[347699186,1736073084337,-500.0,9.041e-05,2]
[347699187,1736073084347,-500.0,9.041e-05,2]
[347699188,1736073084356,-1369.41,9.041e-05,2]
[347699189,1736073084366,-500.0,9.041e-05,2]
[347699190,1736073084375,-500.0,9.041e-05,2]
[347699191,1736073084384,-500.0,9.041e-05,2]
[347699192,1736073084393,-500.0,9.041e-05,2]
[347699193,1736073084402,-500.0,9.041e-05,2]
[347699194,1736073084412,-500.0,9.041e-05,2]
[347699195,1736073084421,-500.0,9.041e-05,2]
[347699196,1736073084431,-1315.12,9.041e-05,2]
[347699197,1736073084440,-4502.35,9.041e-05,2]
[347699198,1736073084449,-751.41,9.041e-05,2]
[347699199,1736073084459,-500.0,9.041e-05,2]
[347699200,1736073084468,-171.51207042,9.041e-05,2]
[347699201,1736073084478,-500.0,9.041e-05,2]
[347699202,1736073084487,-789.96,9.041e-05,2]
[347699203,1736073084497,-276.29773398,9.041e-05,2]
[347699204,1736073084506,-200.0,9.041e-05,2]
[347699205,1736073084515,-2100.0,9.072e-05,2]
[347699206,1736073084526,-631.43,9.095e-05,2]
[347699207,1736073084536,-166.7,9.121e-05,2]
[347699208,1736073084546,-343.06955377,9.126e-05,2]
[347699209,1736073084556,-631.43,9.232e-05,2]
[347699210,1736073084566,-500.0,9.24e-05,2]
[347699211,1736073084575,-500.0,9.24e-05,2]
[347699212,1736073084585,-1287.52,9.24e-05,2]
[347699213,1736073084594,-2496.37,9.24e-05,2]
[347699214,1736073084604,-2796.19,9.24e-05,2]
[347699215,1736073084615,-1853.74,9.24e-05,2]
[347699216,1736073084628,-3951.49,9.24e-05,2]
[347699217,1736073084638,-1766.82,9.24e-05,2]
[347699218,1736073084648,-3384.14,9.24e-05,2]
[347699219,1736073084657,-3722.48,9.24e-05,2]
[347699220,1736073084668,-500.0,9.24e-05,2]
[347699221,1736073084677,-2401.98,9.24e-05,2]
[347699222,1736073084687,-5048.31,9.24e-05,2]
[347699223,1736073084697,-500.0,9.24e-05,2]
[347699224,1736073084707,-1661.72,9.24e-05,2]
[347699225,1736073084716,-1548.23,9.24e-05,2]
[347699226,1736073084725,-2302.39,9.24e-05,2]
[347699227,1736073084735,-500.0,9.241e-05,2]
[347699228,1736073084744,-500.0,9.241e-05,2]
[347699229,1736073084754,-500.0,9.241e-05,2]
[347699230,1736073084763,-500.0,9.241e-05,2]
[347699231,1736073084773,-502.72181078,9.241e-05,2]
[347699232,1736073084784,-500.0,9.241e-05,2]
[347699233,1736073084794,-629.87401757,9.241e-05,2]
[347699234,1736073084803,-247.72426746,9.241e-05,2]
[347699235,1736073084812,-500.0,9.241e-05,2]
[347699236,1736073084821,-500.0,9.241e-05,2]
[347699237,1736073084831,-500.0,9.241e-05,2]
[347699238,1736073084840,-500.0,9.241e-05,2]
[347699239,1736073084850,-500.0,9.241e-05,2]
[347699240,1736073084860,-500.0,9.241e-05,2]
[347699241,1736073084869,-500.0,9.241e-05,2]
[347699242,1736073084878,-500.0,9.241e-05,2]
[347699243,1736073084887,-500.0,9.241e-05,2]
[347699244,1736073084897,-501.35458818,9.241e-05,2]
[347699245,1736073084907,-501.03903812,9.241e-05,2]
[347699246,1736073084917,-500.0,9.241e-05,2]
[347699247,1736073084927,-500.0,9.241e-05,2]
[347699248,1736073084936,-399.09399067,9.241e-05,2]
[347699249,1736073084945,-500.0,9.241e-05,2]
[347699250,1736073084955,-501.93853913,9.241e-05,2]
[347699251,1736073084964,-500.0,9.241e-05,2]
[347699252,1736073084974,-500.0,9.241e-05,2]
[347699253,1736073084983,-500.0,9.241e-05,2]
[347699254,1736073084993,-500.0,9.241e-05,2]
[347699255,1736073085002,-500.0,9.241e-05,2]
[347699256,1736073085012,-500.0,9.241e-05,2]
[347699257,1736073085021,-500.0,9.241e-05,2]
[347699258,1736073085032,-501.4789636,9.241e-05,2]
[347699259,1736073085041,-500.0,9.241e-05,2]
[347699260,1736073085050,-500.0,9.241e-05,2]
[347699261,1736073085060,-502.47505461,9.241e-05,2]
[347699262,1736073085069,-500.0,9.241e-05,2]
[347699263,1736073085078,-500.0,9.241e-05,2]
[347699264,1736073085087,-500.0,9.241e-05,2]
[347699265,1736073085096,-301.14555245,9.241e-05,2]
[347699266,1736073085105,-336.37369628,9.241e-05,2]
[347699267,1736073085115,-500.0,9.241e-05,2]
[347699268,1736073085123,-500.0,9.241e-05,2]
[347699269,1736073085133,-500.0,9.241e-05,2]
[347699270,1736073085142,-422.78807069,9.241e-05,2]
[347699271,1736073085151,-500.0,9.241e-05,2]
[347699272,1736073085161,-501.3582667,9.241e-05,2]
[347699273,1736073085170,-500.0,9.241e-05,2]
[347699274,1736073085179,-500.0,9.241e-05,2]
[347699275,1736073085188,-500.0,9.241e-05,2]
[347699276,1736073085197,-500.0,9.241e-05,2]
[347699277,1736073085207,-500.0,9.241e-05,2]
[347699278,1736073085216,-448.2175815,9.241e-05,2]
[347699279,1736073085225,-503.5304116,9.241e-05,2]
[347699280,1736073085234,-502.43758198,9.241e-05,2]
[347699281,1736073085243,-500.0,9.241e-05,2]
[347699282,1736073085252,-500.95048896,9.241e-05,2]
[347699283,1736073085261,-500.0,9.241e-05,2]
[347699284,1736073085270,-500.0,9.241e-05,2]
[347699285,1736073085279,-500.0,9.241e-05,2]
[347699286,1736073085289,-500.0,9.241e-05,2]
[347699287,1736073085299,-500.0,9.241e-05,2]
[347699288,1736073085307,-642.92,9.241e-05,2]
[347699289,1736073085317,-500.0,9.241e-05,2]
[347699290,1736073085326,-1549.13,9.241e-05,2]
[347699291,1736073085335,-500.0,9.241e-05,2]
[347699292,1736073085344,-500.0,9.241e-05,2]
[347699293,1736073085354,-501.35544198,9.241e-05,2]
[347699294,1736073085363,-500.0,9.241e-05,2]
[347699295,1736073085373,-500.0,9.241e-05,2]
[347699296,1736073085382,-500.0,9.241e-05,2]
[347699297,1736073085391,-500.0,9.241e-05,2]
[347699298,1736073085400,-500.0,9.241e-05,2]
[347699299,1736073085409,-500.0,9.241e-05,2]
[347699300,1736073085419,-500.0,9.241e-05,2]
[347699301,1736073085429,-500.0,9.241e-05,2]
[347699302,1736073085438,-500.0,9.241e-05,2]
[347699303,1736073085447,-502.32048293,9.241e-05,2]
[347699304,1736073085456,-500.0,9.241e-05,2]
[347699305,1736073085465,-500.0,9.241e-05,2]
[347699306,1736073085475,-706.63577924,9.241e-05,2]
[347699307,1736073085484,-500.0,9.241e-05,2]
[347699308,1736073085493,-500.0,9.241e-05,2]
[347699309,1736073085502,-500.0,9.241e-05,2]
[347699310,1736073085511,-500.0,9.241e-05,2]
[347699311,1736073085521,-500.0,9.241e-05,2]
[347699312,1736073085530,-609.32,9.241e-05,2]
[347699313,1736073085542,-500.0,9.241e-05,2]
[347699314,1736073085552,-500.0,9.241e-05,2]
[347699315,1736073085561,-500.0,9.241e-05,2]
[347699316,1736073085571,-500.0,9.241e-05,2]
[347699317,1736073085580,-500.0,9.241e-05,2]
[347699318,1736073085589,-500.0,9.241e-05,2]
[347699319,1736073085598,-607.01,9.241e-05,2]
[347699320,1736073085608,-501.28097126,9.241e-05,2]
[347699321,1736073085617,-500.0,9.241e-05,2]
[347699322,1736073085630,-500.0,9.241e-05,2]
[347699323,1736073085639,-500.0,9.241e-05,2]
[347699324,1736073085650,-597.32,9.241e-05,2]
[347699325,1736073085660,-186.1108865,9.241e-05,2]
[347699326,1736073085670,-500.0,9.241e-05,2]
[347699327,1736073085679,-500.0,9.241e-05,2]
[347699328,1736073085688,-500.0,9.241e-05,2]
[347699329,1736073085700,-500.0,9.241e-05,2]
[347699330,1736073085711,-500.0,9.241e-05,2]
[347699331,1736073085722,-500.0,9.241e-05,2]
[347699332,1736073085731,-500.0,9.241e-05,2]
[347699333,1736073085740,-500.0,9.241e-05,2]
[347699334,1736073085750,-500.0,9.241e-05,2]
[347699335,1736073085760,-500.0,9.241e-05,2]
[347699336,1736073085770,-500.0,9.241e-05,2]
[347699337,1736073085779,-500.0,9.241e-05,2]
[347699338,1736073085790,-500.0,9.241e-05,2]
[347699339,1736073085872,-500.0,9.241e-05,2]
[347699340,1736073085882,-500.0,9.241e-05,2]
[347699341,1736073085891,-500.0,9.241e-05,2]
[347699342,1736073085901,-500.0,9.241e-05,2]
[347699343,1736073085910,-500.0,9.241e-05,2]
[347699344,1736073085919,-500.0,9.241e-05,2]
[347699345,1736073085928,-500.0,9.241e-05,2]
[347699346,1736073085937,-340.42,9.241e-05,2]
[347699347,1736073085945,-500.0,9.241e-05,2]
[347699348,1736073085954,-500.0,9.241e-05,2]
[347699349,1736073085963,-500.0,9.241e-05,2]
[347699350,1736073085972,-503.09691955,9.241e-05,2]
[347699351,1736073085981,-629.75507898,9.241e-05,2]
[347699352,1736073085991,-500.0,9.241e-05,2]
[347699353,1736073086000,-500.0,9.241e-05,2]
[347699354,1736073086009,-500.0,9.241e-05,2]